bitfinex/quotes_SOLUSD_20240626
["timestamp","ask_amount","ask_price","bid_price","bid_amount"]
[1719420800447,7.351,136.04,136.0,25.7339]
[1719420800648,7.351,136.04,136.0,18.381]
[1719420800859,7.3503,136.05,136.0,25.7338]
[1719420801563,7.3497,136.06,136.0,18.381]
[1719420801747,20.0,136.05,136.01,7.5222]
[1719420801948,27.3505,136.05,136.0,25.7335]
[1719420802146,27.3505,136.05,136.0,18.381]
[1719420802548,20.0,136.05,136.0,25.7338]
[1719420802754,7.3504,136.05,136.0,25.7338]
[1719420803372,20.0,136.06,136.02,18.3788]
[1719420803573,7.3492,136.07,136.02,25.7302]
[1719420803873,20.0,136.06,136.04,18.376]
[1719420804047,20.0,136.06,136.05,7.3502]
[1719420804244,20.0,136.06,136.04,25.7265]
[1719420804473,20.0,136.08,136.04,25.7265]
[1719420804669,20.0,136.08,136.04,25.7266]
[1719420805577,20.0,136.08,136.04,18.376]
[1719420805755,7.3477,136.1,136.04,18.376]
[1719420805958,20.0,136.09,136.06,7.3495]
[1719420806374,23.83268162,136.11,136.06,7.3495]
[1719420806669,7.3483,136.09,136.04,25.7266]
[1719420806846,20.0,136.08,136.04,25.7266]
[1719420807049,27.3486,136.08,136.04,25.7266]
[1719420807249,27.3486,136.08,136.04,18.376]
[1719420807470,7.3493,136.07,136.03,28.9436]
[1719420807778,20.0,136.08,136.03,21.5924]
[1719420808077,7.3493,136.07,136.03,6.4398]
[1719420808461,7.3493,136.07,136.03,6.2698]
[1719420808667,7.3493,136.07,136.03,13.621]
[1719420809176,7.3487,136.08,136.03,13.621]
[1719420809668,7.3482,136.09,136.03,24.6479]
[1719420809968,20.0,136.08,136.05,7.3501]
[1719420810175,20.0,136.08,136.04,7.3506]
[1719420812377,27.3486,136.08,136.04,7.3506]
[1719420813178,20.0,136.08,136.04,7.3506]
[1719420813775,20.0,136.08,136.05,25.7257]
[1719420813961,20.0,136.09,136.06,7.3493]
[1719420814880,20.0,136.09,136.05,25.7255]
[1719420815762,27.3481,136.09,136.05,25.7255]
[1719420816177,20.0,136.09,136.03,24.648]
[1719420816387,7.3495,136.07,136.03,24.648]
[1719420816574,7.3498,136.06,136.03,6.2698]
[1719420816774,7.3498,136.06,136.02,7.3517]
[1719420816973,20.0,136.11,136.02,18.3783]
[1719420817287,20.0,136.11,136.0,21.4884]
[1719420817288,7.3489,136.08,136.03,18.377]
[1719420817488,20.0,136.07,136.04,7.3505]
[1719420818060,20.0,136.07,136.0,21.4884]
[1719420818061,20.0,136.07,136.06,7.3496]
[1719420818384,20.0,136.09,136.06,7.3496]
[1719420818585,20.0,136.09,136.05,25.8953]
[1719420818966,7.349,136.08,136.05,0.17]
[1719420819166,7.3491,136.07,136.04,0.17]
[1719420819384,7.3493,136.07,136.04,0.17]
[1719420819686,7.3498,136.06,136.03,0.17]
[1719420819866,7.3493,136.07,136.03,0.17]
[1719420820064,7.3493,136.07,136.03,7.5213]
[1719420820263,20.0,136.09,136.0,39.8707]
[1719420820463,7.3505,136.05,136.01,7.3521]
[1719420821382,7.3498,136.06,136.01,7.3521]
[1719420822196,7.3505,136.05,136.0,47.3935]
[1719420822495,7.3512,136.04,136.01,0.17]
[1719420823390,7.3504,136.05,136.01,0.17]
[1719420823588,7.3504,136.05,136.01,7.5222]
[1719420823788,18.3715,136.08,136.01,7.5222]
[1719420823789,7.3498,136.06,136.01,7.5222]
[1719420823993,7.3505,136.05,136.01,0.17]
[1719420824179,7.3497,136.06,136.01,7.5221]
[1719420825190,7.3503,136.05,136.01,0.17]
[1719420825598,7.3504,136.05,136.0,21.4884]
[1719420825982,7.3504,136.05,136.0,28.8412]
[1719420826382,7.3507,136.04,136.0,28.8412]
[1719420826589,7.3507,136.04,136.0,21.4884]
[1719420826998,7.3507,136.04,136.01,0.17]
[1719420827510,7.351,136.04,136.01,0.17]
[1719420827877,7.351,136.04,136.0,21.4884]
[1719420828077,7.3518,136.02,136.0,21.4884]
[1719420828305,7.3514,136.03,136.0,21.4884]
[1719420829026,7.3524,136.01,135.97,7.3543]
[1719420829300,18.3786,136.03,135.96,22.6422]
[1719420829503,7.3543,135.98,135.96,22.6422]
[1719420830113,7.3543,135.98,135.94,7.3558]
[1719420830404,7.3537,135.99,135.94,7.3558]
[1719420830606,7.3542,135.98,135.93,29.5069]
[1719420830811,7.3542,135.98,135.93,22.1505]
[1719420830983,7.3542,135.98,135.93,29.507]
[1719420831186,7.3536,135.99,135.94,7.356]
[1719420831401,20.0,135.98,135.94,7.356]
[1719420832109,7.355,135.97,135.93,22.1505]
[1719420832494,7.3553,135.96,135.93,22.1505]
[1719420833423,7.3547,135.97,135.93,22.1505]
[1719420833590,7.3547,135.97,135.93,29.507]
[1719420834014,27.3541,135.98,135.93,29.507]
[1719420834713,27.3541,135.98,135.94,7.356]
[1719420835020,20.0,135.98,135.95,7.3555]
[1719420835211,27.3534,135.99,135.95,7.3555]
[1719420836411,7.3541,135.98,135.94,25.7463]
[1719420836825,27.3536,135.99,135.94,25.7463]
[1719420837326,18.3762,136.05,135.95,0.17]
[1719420837526,20.0,136.04,135.97,7.3543]
[1719420837815,18.3769,136.04,135.96,7.355]
[1719420837993,7.3527,136.01,135.97,0.17]
[1719420838189,7.3527,136.01,135.96,25.7411]
[1719420838406,7.353,136.0,135.96,18.3864]
[1719420838615,7.3526,136.01,135.96,25.7413]
[1719420838921,7.352,136.02,135.97,7.3545]
[1719420839299,7.352,136.02,135.96,18.3864]
[1719420839506,7.352,136.02,135.97,0.17]
[1719420840024,7.3524,136.01,135.97,7.5243]
[1719420840333,65.2823,136.07,135.96,7.3545]
[1719420840627,38.7163,136.05,135.96,18.3876]
[1719420840802,7.3527,136.01,135.97,7.3541]
[1719420841009,7.3527,136.01,135.96,25.7424]
[1719420841202,18.3784,136.03,135.93,40.5413]
[1719420841399,7.3538,135.99,135.94,7.3557]
[1719420841923,7.3538,135.99,135.95,7.3556]
[1719420842297,30.0,135.97,135.95,7.3556]
[1719420842631,30.0,135.97,135.95,7.3553]
[1719420843120,30.0,135.97,135.96,0.17]
[1719420843434,30.0,135.97,135.94,18.5591]
[1719420843599,30.0,135.97,135.95,7.3554]
[1719420843921,7.3531,136.0,135.95,7.3554]
[1719420844122,20.0,135.99,135.96,18.5575]
[1719420844305,20.0,135.99,135.97,7.3545]
[1719420844501,30.0,135.98,135.96,25.7425]
[1719420844904,30.0,135.98,135.96,18.3875]
[1719420845224,30.0,135.98,135.95,7.3555]
[1719420845718,30.0,135.98,135.93,22.1505]
[1719420845926,20.0,135.97,135.93,22.1505]
[1719420846122,7.3551,135.96,135.93,22.1505]
[1719420846498,20.0,135.97,135.93,22.1505]
[1719420846704,20.0,135.97,135.93,58.9334]
[1719420846911,20.0,135.97,135.95,7.3555]
[1719420847336,20.0,135.97,135.94,18.3904]
[1719420847499,27.3548,135.97,135.93,29.6769]
[1719420847702,27.3548,135.97,135.94,0.17]
[1719420848118,7.3552,135.96,135.93,22.1505]
[1719420848424,30.0,135.95,135.91,25.751]
[1719420848915,30.0,135.95,135.92,7.3571]
[1719420849415,37.3558,135.95,135.91,25.751]
[1719420849622,37.3558,135.95,135.91,18.3934]
[1719420850123,30.0,135.95,135.91,18.3934]
[1719420850423,37.3557,135.95,135.91,18.3934]
[1719420850622,37.3558,135.95,135.9,7.358]
[1719420850822,7.3562,135.94,135.9,7.358]
[1719420851123,30.0,135.93,135.89,22.8]
[1719420851332,30.0,135.93,135.9,7.358]
[1719420851566,30.0,135.93,135.9,1.23630296]
[1719420851708,30.0,135.93,135.9,8.59440296]
[1719420851910,30.0,135.93,135.91,7.3577]
[1719420852303,30.0,135.93,135.9,26.99020296]
[1719420852632,30.0,135.93,135.91,7.3577]
[1719420854031,30.0,135.93,135.92,8.59332104]
[1719420854539,30.0,135.93,135.92,27.15642104]
[1719420854818,30.0,135.93,135.92,25.9203]
[1719420855033,30.0,135.93,135.92,26.0903]
[1719420855416,7.3542,135.98,135.92,18.7331]
[1719420855608,7.3542,135.98,135.93,7.5265]
[1719420855811,30.0,135.94,135.93,7.5265]
[1719420856124,7.3542,135.98,135.93,7.5266]
[1719420856818,7.3549,135.97,135.93,0.17]
[1719420857119,7.3552,135.96,135.93,0.17]
[1719420857431,7.3558,135.95,135.9,7.358]
[1719420857603,18.3839,135.99,135.89,22.8]
[1719420857604,7.3565,135.94,135.89,22.8]
[1719420857807,7.3564,135.94,135.89,30.1587]
[1719420858022,7.3564,135.94,135.9,7.3582]
[1719420858211,7.3556,135.95,135.9,25.7539]
[1719420858412,7.3556,135.95,135.91,7.3577]
[1719420858629,7.3556,135.95,135.9,25.924]
[1719420858926,7.3556,135.95,135.91,0.17]
[1719420859227,7.3558,135.95,135.91,0.17]
[1719420860020,7.3558,135.95,135.91,7.5277]
[1719420860323,7.3549,135.97,135.93,7.3567]
[1719420860532,30.0,135.94,135.93,7.3567]
[1719420860829,30.0,135.94,135.92,18.3931]
[1719420861041,30.0,135.94,135.91,0.17]
[1719420861329,7.3576,135.92,135.9,0.17]
[1719420861634,7.3576,135.92,135.89,22.8]
[1719420861818,7.3568,135.93,135.89,22.8]
[1719420862019,7.3558,135.95,135.9,7.3578]
[1719420862204,27.3563,135.94,135.9,25.7535]
[1719420862633,30.0,135.91,135.9,25.7535]
[1719420862807,30.0,135.91,135.9,25.9235]
[1719420863236,7.3549,135.97,135.93,7.3566]
[1719420863410,20.0,135.96,135.9,0.34]
[1719420863723,7.3559,135.95,135.9,0.17]
[1719420863909,7.3559,135.95,135.91,7.5278]
[1719420864311,20.0,135.96,135.89,41.196]
[1719420864516,7.3573,135.92,135.88,7.3592]
[1719420864713,30.0,135.93,135.9,7.3583]
[1719420864932,30.0,135.93,135.89,7.3586]
[1719420865627,30.0,135.91,135.89,7.3586]
[1719420865835,30.0,135.91,135.9,1.27705969]
[1719420866830,30.0,135.91,135.89,7.3586]
[1719420867127,30.0,135.91,135.88,18.5683]
[1719420867335,30.0,135.91,135.89,7.5287]
[1719420867512,30.0,135.91,135.9,7.3583]
[1719420868318,30.0,135.91,135.9,25.7541]
[1719420868521,30.0,135.91,135.9,25.9241]
[1719420869638,30.0,135.91,135.9,18.5658]
[1719420869829,30.0,135.91,135.89,7.3586]
[1719420870618,30.0,135.91,135.87,18.3988]
[1719420870619,37.358,135.91,135.87,18.3988]
[1719420871617,37.358,135.91,135.87,25.7584]
[1719420871830,30.0,135.91,135.87,25.7584]
[1719420872037,30.0,135.91,135.88,7.529]
[1719420872514,30.0,135.91,135.88,7.359]
[1719420872920,30.0,135.91,135.89,25.7554]
[1719420873121,30.0,135.91,135.9,7.3583]
[1719420873723,30.0,135.91,135.88,0.17]
[1719420873921,37.3581,135.91,135.86,18.4001]
[1719420874119,30.0,135.91,135.86,18.4001]
[1719420874719,30.0,135.91,135.88,25.7575]
[1719420875138,30.0,135.91,135.89,0.17]
[1719420875318,7.3563,135.94,135.89,7.5284]
[1719420875521,20.0,135.93,135.89,7.5284]
[1719420875726,30.0,135.9,135.89,7.5284]
[1719420876139,30.0,135.9,135.88,18.3984]
[1719420876347,30.0,135.9,135.88,25.7575]
[1719420877036,27.3568,135.93,135.88,25.7575]
[1719420877338,27.3568,135.93,135.89,7.3586]
[1719420877931,30.0,135.9,135.89,7.3586]
[1719420878339,30.0,135.9,135.88,18.3984]
[1719420878646,30.0,135.9,135.88,25.7576]
[1719420879152,30.0,135.9,135.88,18.3984]
[1719420879325,7.3574,135.92,135.88,25.7577]
[1719420880124,27.3568,135.93,135.89,7.3588]
[1719420880636,7.3576,135.92,135.88,18.3984]
[1719420880841,7.3578,135.91,135.87,7.5296]
[1719420881345,7.3574,135.92,135.87,7.5296]
[1719420881560,7.3574,135.92,135.88,7.3592]
[1719420881741,27.3569,135.93,135.88,7.3592]
[1719420882034,7.3573,135.92,135.88,7.3592]
[1719420882234,27.3569,135.93,135.88,7.3592]
[1719420882447,30.0,135.89,135.88,7.3592]
[1719420886048,30.0,135.89,135.88,7.5292]
[1719420886251,30.0,135.89,135.88,34.8592]
[1719420887032,30.0,135.89,135.88,0.17]
[1719420887627,30.0,135.89,135.88,27.87258624]
[1719420887829,30.0,135.89,135.88,7.90198624]
[1719420888028,30.0,135.89,135.88,34.6894]
[1719420888234,30.0,135.89,135.87,53.0898]
[1719420888439,30.0,135.89,135.87,25.7598]
[1719420888935,30.0,135.89,135.87,53.0898]
[1719420889153,30.0,135.89,135.87,25.7598]
[1719420889358,30.0,135.89,135.88,7.3594]
[1719420889747,30.0,135.89,135.88,8.83116802]
[1719420889935,30.0,135.89,135.88,34.8594]
[1719420890529,22.5098,135.95,135.9,7.358]
[1719420890736,30.0,135.91,135.9,34.688]
[1719420891030,15.1541,135.95,135.89,18.3962]
[1719420891230,7.357,135.93,135.89,25.755]
[1719420891529,15.1541,135.95,135.89,25.7546]
[1719420891741,27.3563,135.94,135.89,53.0846]
[1719420891946,27.3563,135.94,135.9,7.3582]
[1719420892552,20.0,135.94,135.91,25.7518]
[1719420892755,20.0,135.94,135.9,27.33]
[1719420892962,20.0,135.94,135.91,7.3576]
[1719420893160,27.3562,135.94,135.9,25.7541]
[1719420893364,27.3562,135.94,135.9,53.0841]
[1719420893654,20.0,135.94,135.9,53.0841]
[1719420893858,20.0,135.94,135.91,8.16665026]
[1719420894645,27.3561,135.94,135.91,0.80895026]
[1719420894844,20.0,135.94,135.9,18.3958]
[1719420895663,27.3563,135.94,135.9,18.3958]
[1719420896141,7.3576,135.92,135.88,27.33]
[1719420896340,7.3576,135.92,135.88,34.6893]
[1719420896760,7.3569,135.93,135.88,34.6893]
[1719420896943,7.3569,135.93,135.89,0.92765424]
[1719420897658,7.3569,135.93,135.89,8.28645424]
[1719420897831,7.3569,135.93,135.9,0.9285659]
[1719420898032,27.3564,135.94,135.9,0.9285659]
[1719420898236,27.3564,135.94,135.9,8.2867659]
[1719420898837,20.0,135.94,135.9,8.2867659]
[1719420899157,20.0,135.94,135.91,0.17]
[1719420899651,20.0,135.94,135.9,0.17]
[1719420899846,7.66300012,135.97,135.91,18.3943]
[1719420900056,7.3549,135.97,135.92,34.857]
[1719420900235,7.3551,135.96,135.92,34.8572]
[1719420901057,15.629,135.98,135.92,7.5272]
[1719420901261,47.33,135.97,135.92,0.17]
[1719420901439,20.0,135.97,135.92,0.17]
[1719420901644,20.0,135.97,135.91,34.8575]
[1719420901850,27.3549,135.97,135.93,7.3565]
[1719420902043,54.6849,135.97,135.92,25.7498]
[1719420902243,20.0,135.97,135.91,0.17]
[1719420902451,7.3558,135.95,135.91,7.5276]
[1719420902958,7.3553,135.96,135.92,7.357]
[1719420904264,27.3547,135.97,135.92,7.3568]
[1719420904452,7.3551,135.96,135.93,0.17]
[1719420904646,7.3551,135.96,135.92,7.3568]
[1719420905039,7.3558,135.95,135.91,27.5]
[1719420905766,7.3558,135.95,135.91,0.17]
[1719420906063,7.3552,135.96,135.91,7.5278]
[1719420906252,27.3547,135.97,135.92,18.3931]
[1719420906951,7.3553,135.96,135.92,18.3931]
[1719420907345,7.3553,135.96,135.92,25.7503]
[1719420907546,7.3556,135.95,135.92,18.3931]
[1719420907743,38.387,135.97,135.91,0.17]
[1719420907942,38.387,135.97,135.88,27.33]
[1719420908441,7.3565,135.94,135.9,7.3581]
[1719420908643,7.3558,135.95,135.9,7.3581]
[1719420908856,20.0,135.94,135.91,25.752]
[1719420909051,20.0,135.94,135.92,7.357]
[1719420909375,15.629,135.98,135.9,27.33]
[1719420909376,20.0,135.95,135.9,27.33]
[1719420909741,27.356,135.95,135.91,7.5277]
[1719420910555,20.0,135.95,135.91,7.5277]
[1719420911171,7.3565,135.94,135.9,45.7258]
[1719420911365,27.3557,135.95,135.91,34.8574]
[1719420912164,27.3557,135.95,135.91,7.5274]
[1719420912364,27.3557,135.95,135.91,0.17]
[1719420912584,7.353,136.0,135.95,7.3551]
[1719420912746,7.3527,136.01,135.96,7.3547]
[1719420913071,7.3527,136.01,135.97,7.3545]
[1719420913368,7.3527,136.01,135.97,27.33]
[1719420913749,7.3527,136.01,135.96,53.0724]
[1719420914070,7.3531,136.0,135.95,7.5256]
[1719420914261,7.3545,135.98,135.95,0.17]
[1719420914456,7.3545,135.98,135.94,27.5]
[1719420914650,7.3535,135.99,135.94,0.17]
[1719420914857,7.3535,135.99,135.94,27.5]
[1719420915265,7.3535,135.99,135.94,34.856]
[1719420915469,7.3549,135.97,135.93,18.3907]
[1719420915770,7.3541,135.98,135.93,53.077]
[1719420916268,7.3546,135.97,135.93,53.077]
[1719420916765,7.3546,135.97,135.93,18.3907]
[1719420916950,20.0,135.96,135.93,18.3907]
[1719420917351,20.0,135.96,135.9,45.7247]
[1719420917547,7.3573,135.92,135.88,7.359]
[1719420917765,7.66477286,136.04,135.98,7.3538]
[1719420917969,7.66477286,136.04,135.99,7.3534]
[1719420917970,20.0,136.03,135.99,7.3534]
[1719420918276,20.0,136.03,135.98,34.684]
[1719420918451,20.0,136.05,135.98,45.7149]
[1719420918653,20.0,136.05,135.98,25.7387]
[1719420918949,7.3508,136.04,135.98,18.3849]
[1719420919470,6.617,136.07,136.03,7.3511]
[1719420919674,7.3487,136.08,136.03,7.3511]
[1719420919971,15.375,136.09,136.05,7.3502]
[1719420920349,15.375,136.09,136.06,7.3496]
[1719420920555,13.3644,136.11,136.06,7.3496]
[1719420920975,7.3474,136.11,136.06,7.3496]
[1719420921480,7.3475,136.1,136.05,7.3501]
[1719420921859,7.3482,136.09,136.04,41.9798]
[1719420922079,7.3487,136.08,136.03,7.3512]
[1719420922259,7.3487,136.08,136.01,34.6325]
[1719420922260,7.348,136.09,136.04,25.7268]
[1719420922454,20.0,136.08,136.04,25.7268]
[1719420922653,27.3486,136.08,136.04,25.7268]
[1719420922962,7.3499,136.06,136.01,34.6327]
[1719420923168,20.0,136.05,136.01,34.6327]
[1719420923679,20.0,136.05,136.03,7.3512]
[1719420923887,20.0,136.07,136.03,18.3778]
[1719420924064,20.0,136.07,136.01,16.2525]
[1719420924253,7.348,136.1,136.05,25.7251]
[1719420924448,27.3481,136.09,136.05,25.7251]
[1719420925078,7.3489,136.08,136.02,18.5485]
[1719420925253,7.3489,136.08,136.03,0.17]
[1719420925450,27.3481,136.09,136.04,7.3503]
[1719420926285,20.0,136.09,136.03,7.5213]
[1719420926485,7.3487,136.08,136.03,7.5213]
[1719420926662,27.3492,136.07,136.02,25.7301]
[1719420926870,7.3492,136.07,136.03,7.3511]
[1719420927072,7.3487,136.08,136.03,7.3511]
[1719420927276,20.0,136.07,136.03,7.3511]
[1719420928477,20.0,136.07,136.04,7.3507]
[1719420928861,20.0,136.07,136.01,7.352]
[1719420929058,7.3504,136.05,135.99,18.3825]
[1719420929369,20.0,136.04,136.0,7.3527]
[1719420929761,20.0,136.04,136.01,7.3519]
[1719420929966,27.3501,136.06,136.01,7.3519]
[1719420930184,20.0,136.06,136.02,7.3518]
[1719420930367,20.0,136.06,136.01,25.7329]
[1719420930987,27.3497,136.06,136.02,7.3518]
[1719420931788,7.3504,136.05,136.01,18.3807]
[1719420931961,20.0,136.04,136.01,18.3807]
[1719420932480,7.3515,136.03,135.99,7.3533]
[1719420932674,27.3508,136.04,135.99,7.3531]
[1719420932976,27.3508,136.04,135.98,40.9025]
[1719420933183,38.3769,136.04,135.96,7.355]
[1719420933365,7.3533,136.0,135.95,18.3888]
[1719420933566,38.3769,136.04,135.96,7.3547]
[1719420933790,7.3525,136.01,135.96,7.3546]
[1719420934113,20.0,136.0,135.97,7.3544]
[1719420934460,20.0,136.0,135.98,7.3539]
[1719420934666,20.0,136.01,135.98,7.3539]
[1719420935180,20.0,136.01,135.97,25.7405]
[1719420935486,20.0,136.01,136.0,7.3529]
[1719420935682,7.3505,136.05,136.0,7.3529]
[1719420935883,20.0,136.04,136.01,7.3522]
[1719420936569,20.0,136.04,136.02,7.3517]
[1719420936766,20.0,136.05,136.02,7.3517]
[1719420936972,20.0,136.05,136.01,25.7328]
[1719420937173,27.3503,136.05,136.01,25.7328]
[1719420938393,7.3509,136.04,135.99,7.3533]
[1719420938593,7.3509,136.04,136.0,7.3527]
[1719420939585,27.3504,136.05,136.0,7.3527]
[1719420940570,7.3508,136.04,136.0,25.7349]
[1719420941180,7.3513,136.03,135.99,7.3534]
[1719420941492,7.3509,136.04,136.0,7.3529]
[1719420941807,27.3514,136.03,135.99,25.7366]
[1719420942668,7.3519,136.02,135.99,18.3834]
[1719420942883,20.0,136.03,135.99,18.3834]
[1719420943194,7.353,136.0,135.96,25.7415]
[1719420943695,7.3526,136.01,135.97,7.3544]
[1719420943896,20.0,136.0,135.97,7.3544]
[1719420944272,27.3531,136.0,135.96,18.3868]
[1719420944697,7.3535,135.99,135.95,7.3555]
[1719420944877,20.0,135.98,135.95,7.3555]
[1719420945591,20.0,135.98,135.93,18.3905]
[1719420945795,20.0,136.0,135.93,25.7468]
[1719420945997,0.17,135.99,135.93,18.3905]
[1719420946392,20.0,136.0,135.95,18.3888]
[1719420946590,27.353,136.0,135.95,18.3888]
[1719420946789,7.3536,135.99,135.95,25.7443]
[1719420947094,20.0,135.98,135.95,25.7443]
[1719420947304,20.0,135.98,135.96,7.355]
[1719420947678,20.0,135.99,135.96,7.355]
[1719420948701,27.3535,135.99,135.95,25.7442]
[1719420949598,20.0,135.99,135.95,25.7442]
[1719420949778,20.0,136.02,135.94,7.356]
[1719420949977,0.17,136.01,135.94,7.356]
[1719420950204,0.17,136.01,135.94,25.7463]
[1719420950703,7.354,135.99,135.94,25.7463]
[1719420950907,20.0,135.98,135.94,25.7463]
[1719420951108,20.0,135.98,135.95,7.3554]
[1719420951997,27.354,135.98,135.94,25.7462]
[1719420952890,20.0,135.98,135.94,25.7462]
[1719420953094,20.0,135.98,135.95,7.3554]
[1719420953491,20.0,135.98,135.94,25.7462]
[1719420953704,27.3544,135.98,135.94,18.3903]
[1719420955614,27.3544,135.98,135.94,25.7463]
[1719420955783,20.0,135.98,135.94,25.7463]
[1719420955983,20.0,135.98,135.95,7.3554]
[1719420957407,20.0,135.98,135.94,25.7462]
[1719420957713,27.3541,135.98,135.94,25.7462]
[1719420958002,20.0,135.98,135.92,7.3569]
[1719420958185,7.3551,135.96,135.92,7.3569]
[1719420958392,7.3556,135.95,135.91,41.8286]
[1719420958592,7.3553,135.96,135.91,25.7508]
[1719420958789,20.0,135.95,135.89,18.3971]
[1719420958992,7.3573,135.92,135.89,18.3971]
[1719420959201,20.0,135.95,135.89,25.7558]
[1719420959202,7.3569,135.93,135.89,25.7558]
[1719420959601,7.3562,135.94,135.9,7.3582]
[1719420959987,7.3562,135.94,135.89,25.7557]
[1719420960187,7.3562,135.94,135.9,7.3583]
[1719420960583,7.3567,135.93,135.89,25.7558]
[1719420960790,7.3563,135.94,135.9,7.3582]
[1719420960994,20.0,135.93,135.92,7.3572]
[1719420961190,20.0,135.93,135.89,7.3587]
[1719420961393,27.357,135.93,135.89,7.3587]
[1719420961997,20.0,135.93,135.9,25.7539]
[1719420962202,27.3558,135.95,135.91,7.3574]
[1719420962900,20.0,135.95,135.92,7.3572]
[1719420963203,20.0,135.95,135.91,0.17]
[1719420963509,20.0,135.97,135.94,25.7465]
[1719420963684,20.0,135.97,135.95,7.3556]
[1719420963889,20.0,135.97,135.94,25.7464]
[1719420964197,27.3546,135.97,135.93,7.3565]
[1719420965095,27.3546,135.97,135.92,7.3569]
[1719420965304,27.3546,135.97,135.91,18.5631]
[1719420965501,27.3546,135.97,135.93,7.3564]
[1719420966796,20.0,135.97,135.94,7.3561]
[1719420967814,27.3546,135.97,135.93,25.7479]
[1719420969209,7.3551,135.96,135.93,18.3915]
[1719420969416,7.3551,135.96,135.92,7.3571]
[1719420969613,7.3551,135.96,135.91,0.17]
[1719420969614,27.3546,135.97,135.93,7.3566]
[1719420970092,7.3551,135.96,135.91,25.9204]
[1719420970295,27.3547,135.97,135.92,7.357]
[1719420970490,7.3553,135.96,135.92,7.357]
[1719420971490,7.3553,135.96,135.91,18.5632]
[1719420971491,7.3553,135.96,135.91,25.7508]
[1719420971716,7.3553,135.96,135.92,7.3571]
[1719420971888,27.3547,135.97,135.92,7.3571]
[1719420972507,7.3551,135.96,135.91,25.7507]
[1719420972812,7.3551,135.96,135.91,18.3932]
[1719420973597,7.3551,135.96,135.91,25.7507]
[1719420973800,7.3556,135.95,135.91,25.7507]
[1719420974413,7.3563,135.94,135.9,7.3582]
[1719420974620,20.0,135.97,135.9,7.3582]
[1719420974621,7.3558,135.95,135.9,7.3582]
[1719420974789,20.0,135.94,135.9,7.3582]
[1719420975500,20.0,135.94,135.89,18.3959]
[1719420975817,7.3579,135.91,135.87,7.3597]
[1719420976002,0.17,135.93,135.87,7.3595]
[1719420976003,20.0,135.9,135.87,7.3595]
[1719420976818,20.0,135.91,135.87,7.3595]
[1719420977313,20.0,135.91,135.88,7.3592]
[1719420978710,20.0,135.91,135.87,7.3597]
[1719420979104,20.0,135.91,135.87,8.83153543]
[1719420979518,20.0,135.91,135.88,7.3593]
[1719420979824,30.0,135.89,135.88,25.7578]
[1719420980000,30.0,135.89,135.88,25.9278]
[1719420980399,30.0,135.89,135.88,26.0978]
[1719420980803,7.3552,135.96,135.91,25.751]
[1719420981005,30.0,135.92,135.91,25.751]